bitfinex-derivatives/quotes_BTCF0:USTF0_20241120
["timestamp","ask_amount","ask_price","bid_price","bid_amount"]
[1732116792926,0.3608,94733.0,94732.0,0.04420861]
[1732116794235,0.3608,94733.0,94732.0,0.09692761]
[1732116795944,0.3608,94744.0,94737.0,0.052716]
[1732116796134,0.3608,94744.0,94732.0,0.04420861]
[1732116796336,0.3608,94744.0,94735.0,0.11979111]
[1732116796528,0.3608,94744.0,94739.0,0.00168565]
[1732116796732,0.0152671,94743.0,94739.0,0.00168565]
[1732116796933,0.0152671,94742.0,94739.0,0.00168565]
[1732116797131,0.0152671,94741.0,94739.0,0.00168565]
[1732116797338,0.0152671,94740.0,94739.0,0.05440065]
[1732116797942,0.3608,94744.0,94739.0,0.00168565]
[1732116798126,0.015281,94743.0,94739.0,0.00168565]
[1732116798326,0.3608,94744.0,94743.0,0.052713]
[1732116798532,0.3608,94744.0,94743.0,0.00939865]
[1732116798838,0.3608,94744.0,94743.0,0.00168565]
[1732116799027,0.3608,94744.0,94743.0,0.05439865]
[1732116800039,0.3608,94744.0,94743.0,0.09379865]
[1732116800738,0.3608,94744.0,94743.0,0.08336117]
[1732116801141,0.3608,94744.0,94743.0,0.04396117]
[1732116801647,0.3608,94744.0,94743.0,0.09667417]
[1732116803540,0.36924,94744.0,94743.0,0.09667417]
[1732116803736,0.38453291,94744.0,94743.0,0.09667417]
[1732116803937,0.36924,94744.0,94743.0,0.09667417]
[1732116804733,0.00844,94744.0,94743.0,0.1177546]
[1732116805348,0.36924,94744.0,94743.0,0.1177546]
[1732116807444,0.00844,94744.0,94743.0,0.1177546]
[1732116807742,0.36924,94744.0,94743.0,0.1177546]
[1732116807947,0.36924,94744.0,94743.0,0.11831995]
[1732116808147,0.00844,94744.0,94743.0,0.11831995]
[1732116808444,0.36924,94744.0,94743.0,0.11831995]
[1732116808641,0.36924001,94744.0,94743.0,0.11831995]
[1732116808949,0.3608,94752.0,94751.0,0.052709]
[1732116809141,0.3608,94752.0,94751.0,0.29229122]
[1732116809944,0.3608,94752.0,94751.0,0.29454222]
[1732116810148,0.3608,94752.0,94751.0,0.61114222]
[1732116810449,0.3608,94763.0,94762.0,0.052703]
[1732116810747,0.37607028,94763.0,94762.0,0.17249411]
[1732116811135,0.37607028,94763.0,94762.0,0.17474511]
[1732116811549,0.3335,94763.0,94762.0,0.17474511]
[1732116811746,0.37321503,94763.0,94762.0,0.17474511]
[1732116812051,0.34877501,94763.0,94762.0,0.17474511]
[1732116812347,0.34194,94763.0,94762.0,0.17474511]
[1732116812539,0.35715217,94763.0,94762.0,0.17474511]
[1732116814248,0.34194,94763.0,94762.0,0.17474511]
[1732116814547,0.34194,94763.0,94762.0,0.002251]
[1732116814749,0.35695946,94763.0,94762.0,0.04440905]
[1732116814950,0.34194,94763.0,94762.0,0.002251]
[1732116815346,0.35703944,94763.0,94762.0,0.002251]
[1732116815849,0.35704636,94763.0,94762.0,0.002251]
[1732116817747,0.34194,94763.0,94762.0,0.093954]
[1732116818941,0.00844,94763.0,94762.0,0.093954]
[1732116819751,0.00844,94763.0,94762.0,0.13610784]
[1732116820942,0.00844,94763.0,94762.0,0.04215384]
[1732116821148,0.00844,94763.0,94745.0,0.14086592]
[1732116821149,0.02347413,94763.0,94745.0,0.14086592]
[1732116821345,0.3608,94750.0,94749.0,0.15949111]
[1732116821555,0.3608,94750.0,94749.0,0.11979111]
[1732116821855,0.3608,94750.0,94749.0,0.16255612]
[1732116822053,0.413509,94750.0,94749.0,0.04276501]
[1732116822246,0.413509,94750.0,94740.0,0.11979111]
[1732116822247,0.42827635,94750.0,94740.0,0.11979111]
[1732116822445,0.3608,94741.0,94734.0,0.11979111]
[1732116822646,0.3608,94741.0,94717.0,0.3608]
[1732116822647,0.052719,94733.0,94723.0,0.11979111]
[1732116822949,0.413516,94738.0,94729.0,0.22136]
[1732116823148,0.01460813,94737.0,94729.0,0.22136]
[1732116823444,0.3608,94738.0,94730.0,0.11979111]
[1732116823445,0.01465888,94736.0,94730.0,0.11979111]
[1732116823650,0.3608,94738.0,94730.0,0.11979111]
[1732116823852,0.00844,94737.0,94730.0,0.11979111]
[1732116824361,0.01476136,94736.0,94730.0,0.11979111]
[1732116824654,0.01476136,94735.0,94730.0,0.11979111]
[1732116824844,0.01476136,94734.0,94730.0,0.11979111]
[1732116825157,0.00844,94737.0,94730.0,0.11979111]
[1732116825352,0.01482654,94736.0,94730.0,0.11979111]
[1732116825553,0.01482654,94735.0,94730.0,0.11979111]
[1732116825743,0.00844,94737.0,94730.0,0.11979111]
[1732116825948,0.01482639,94736.0,94732.0,0.0415254]
[1732116826147,0.00844,94737.0,94732.0,0.0415254]
[1732116826751,0.01482865,94736.0,94732.0,0.0415254]
[1732116826956,0.01,94762.0,94752.0,0.052708]
[1732116827156,0.01,94762.0,94741.0,0.11979111]
[1732116827157,0.3608,94756.0,94741.0,0.11979111]
[1732116827361,0.3608,94747.0,94741.0,0.11979111]
[1732116827559,0.0385,94746.0,94741.0,0.11979111]
[1732116827757,0.3608,94742.0,94741.0,0.11979111]
[1732116828649,0.3608,94742.0,94741.0,0.07479111]
[1732116829356,0.3608,94742.0,94734.0,0.11979111]
[1732116829558,0.3608,94742.0,94732.0,0.0415254]
[1732116829861,0.3608,94733.0,94732.0,0.0415254]
[1732116830859,0.3608,94733.0,94732.0,0.00013389]
[1732116831746,0.3608,94733.0,94732.0,0.05285389]
[1732116833661,0.00056001,94751.0,94732.0,0.00013389]
[1732116833957,0.0382,94745.0,94744.0,0.052713]
[1732116834163,0.0404,94751.0,94740.0,0.11979111]
[1732116834351,0.0382,94750.0,94740.0,0.11979111]
[1732116834551,0.3608,94744.0,94740.0,0.11979111]
[1732116834760,0.3608,94744.0,94732.0,0.119925]
[1732116835066,0.3608,94744.0,94733.0,0.052719]
[1732116835252,0.3608,94744.0,94732.0,0.119925]
[1732116835748,0.3608,94744.0,94736.0,0.052717]
[1732116836055,0.3608,94744.0,94732.0,0.119925]
[1732116836056,0.3608,94744.0,94740.0,0.11979111]
[1732116836247,0.0382,94750.0,94740.0,0.11979111]
[1732116836656,0.0382,94750.0,94740.0,0.17250611]
[1732116836863,0.0382,94750.0,94743.0,0.052713]
[1732116837058,0.0382,94750.0,94740.0,0.11979111]
[1732116837059,0.3608,94744.0,94740.0,0.11979111]
[1732116837362,0.3608,94744.0,94740.0,0.17250611]
[1732116837561,0.3608,94744.0,94743.0,0.052714]
[1732116837752,0.3608,94753.0,94740.0,0.11979111]
[1732116837948,0.052711,94748.0,94740.0,0.11979111]
[1732116838349,0.3608,94741.0,94740.0,0.11979111]
[1732116838654,0.3608,94753.0,94740.0,0.11979111]
[1732116838849,0.052709,94751.0,94740.0,0.11979111]
[1732116839049,0.052711,94748.0,94740.0,0.11979111]
[1732116839255,0.3608,94741.0,94740.0,0.17250611]
[1732116839657,0.3608,94741.0,94740.0,0.11979111]
[1732116841876,0.3608,94741.0,94740.0,0.17250611]
[1732116842067,0.3608,94760.0,94740.0,0.11979111]
[1732116842367,0.3608,94760.0,94752.0,0.11979111]
[1732116842863,0.3608,94760.0,94759.0,0.17249611]
[1732116843069,0.01,94762.0,94761.0,0.052704]
[1732116843766,0.02688,94762.0,94761.0,0.052704]
[1732116845268,0.02688,94762.0,94761.0,0.0414007]
[1732116845471,0.02688,94762.0,94761.0,0.17249511]
[1732116846154,0.0388,94784.0,94772.0,0.052697]
[1732116846359,0.3608,94777.0,94770.0,0.11979111]
[1732116846566,0.3608,94777.0,94770.0,0.17248911]
[1732116846967,0.3608,94777.0,94772.0,0.052697]
[1732116847153,0.0388,94784.0,94770.0,0.11979111]
[1732116847765,0.01536737,94783.0,94775.0,0.052695]
[1732116847963,0.0388,94784.0,94775.0,0.052695]
[1732116848273,0.3608,94778.0,94770.0,0.11979111]
[1732116848968,0.3608,94778.0,94772.0,0.052697]
[1732116849169,0.0388,94784.0,94770.0,0.11979111]
[1732116849384,0.3608,94786.0,94779.0,0.052693]
[1732116849575,0.01533974,94785.0,94779.0,0.052693]
[1732116849866,0.01533974,94784.0,94781.0,0.052692]
[1732116850061,0.3608,94786.0,94777.0,0.11979111]
[1732116850263,0.3608,94786.0,94778.0,0.04]
[1732116850476,0.01532947,94785.0,94778.0,0.04]
[1732116850781,0.01532947,94784.0,94783.0,0.052691]
[1732116850957,0.3608,94786.0,94785.0,0.05269]
[1732116851371,0.3608,94786.0,94778.0,0.04]
[1732116851568,0.3608,94786.0,94785.0,0.05269]
[1732116852071,0.37594755,94786.0,94785.0,0.05269]
[1732116852771,0.3608,94802.0,94784.0,0.3608]
[1732116853074,0.01583189,94799.0,94787.0,0.17248011]
[1732116853266,0.3608,94802.0,94787.0,0.17248011]
[1732116853467,0.01585079,94799.0,94787.0,0.17248011]
[1732116853661,0.3608,94802.0,94787.0,0.17248011]
[1732116853967,0.01584719,94799.0,94787.0,0.11979111]
[1732116854170,0.14493716,94800.0,94787.0,0.11979111]
[1732116854363,0.01580893,94799.0,94787.0,0.11979111]
[1732116854564,0.14493716,94800.0,94787.0,0.11979111]
[1732116854763,0.01580855,94799.0,94787.0,0.11979111]
[1732116854959,0.14493716,94800.0,94787.0,0.11979111]
[1732116855169,0.01580973,94799.0,94787.0,0.11979111]
[1732116855469,0.14493716,94800.0,94787.0,0.11979111]
[1732116855470,0.3608,94794.0,94787.0,0.11979111]
[1732116855974,0.14493716,94800.0,94787.0,0.11979111]
[1732116856162,0.3608,94798.0,94789.0,0.052692]
[1732116856363,0.3608,94797.0,94787.0,0.16180942]
[1732116856566,0.14493716,94800.0,94787.0,0.16180942]
[1732116856763,0.14493716,94800.0,94793.0,0.11979111]
[1732116856963,0.3608,94795.0,94793.0,0.11979111]
[1732116857569,0.3608,94795.0,94793.0,0.17248111]
[1732116857868,0.3608,94795.0,94793.0,0.11979111]
[1732116858067,0.3608,94795.0,94793.0,0.17248111]
[1732116858472,0.3608,94795.0,94787.0,0.052694]
[1732116858674,0.3608,94795.0,94785.0,0.11979111]
[1732116858872,0.4008,94786.0,94727.0,0.3608]
[1732116859077,0.3608,94742.0,94731.0,0.11979111]
[1732116859379,0.092605,94758.0,94739.0,0.11979111]
[1732116859576,0.3608,94751.0,94740.0,0.0406]
[1732116859766,0.3608,94741.0,94740.0,0.0406]
[1732116861670,0.36924,94741.0,94740.0,0.0406]
[1732116862376,0.36924,94741.0,94739.0,0.04159806]
[1732116862573,0.052716,94739.0,94733.0,0.3608]
[1732116862767,0.052716,94739.0,94733.0,0.40372552]
[1732116863473,0.052716,94739.0,94733.0,0.04292552]
[1732116863780,0.052719,94734.0,94732.0,0.00013389]
[1732116863977,0.3608,94733.0,94732.0,0.00013389]
[1732116864271,0.3608,94733.0,94711.0,0.052731]
[1732116864272,0.00011714,94732.0,94703.0,0.11979111]
[1732116864475,0.00011714,94732.0,94708.0,0.40274465]
[1732116864476,0.3608,94720.0,94708.0,0.40274465]
[1732116864671,0.3608,94709.0,94708.0,0.04194465]
[1732116864877,0.052734,94706.0,94699.0,0.3608]
[1732116865175,0.11979111,94711.0,94690.0,0.11979111]
[1732116865176,0.413538,94700.0,94690.0,0.11979111]
[1732116865373,0.413538,94700.0,94686.0,0.21988]
[1732116865374,0.3608,94700.0,94683.0,0.11979111]
[1732116865769,0.3608,94700.0,94685.0,0.052745]
[1732116865977,0.3608,94700.0,94691.0,0.11979111]
[1732116866176,0.3608,94711.0,94699.0,0.11979111]
[1732116866477,0.3608,94723.0,94706.0,0.11979111]
[1732116866677,0.052726,94721.0,94706.0,0.11979111]
[1732116866868,0.7216,94714.0,94688.0,0.48059111]
[1732116867068,0.3608,94706.0,94688.0,0.48059111]
[1732116867277,0.3608,94714.0,94688.0,0.48059111]
[1732116867476,0.3608,94714.0,94692.0,0.052742]
[1732116867665,0.3608,94714.0,94695.0,0.11979111]
[1732116867871,0.3608,94704.0,94688.0,0.3608]
[1732116868076,0.3608,94704.0,94692.0,0.052741]
[1732116868282,0.3608,94704.0,94688.0,0.4035036]
[1732116868770,0.3608,94704.0,94689.0,0.11979111]
[1732116868975,0.3608,94704.0,94689.0,0.17253411]
[1732116869678,0.3608,94704.0,94688.0,0.4035036]
[1732116869865,0.413535,94704.0,94688.0,0.4035036]
[1732116870175,0.413535,94704.0,94696.0,0.11979111]
[1732116870176,0.3608,94704.0,94696.0,0.11979111]
[1732116870477,0.3608,94714.0,94696.0,0.11979111]
[1732116870672,0.3608,94705.0,94694.0,0.05274]
[1732116871180,0.3608,94705.0,94696.0,0.11979111]
[1732116871380,0.3608,94714.0,94700.0,0.052737]
[1732116871564,0.3608,94714.0,94688.0,0.4035036]
[1732116871565,0.3608,94714.0,94704.0,0.11979111]
[1732116871873,0.3608,94714.0,94705.0,0.0379]
[1732116872075,0.3608,94714.0,94711.0,0.052731]
[1732116872376,0.3608,94727.0,94711.0,0.11979111]
[1732116872681,0.00011714,94732.0,94709.0,0.21996]
[1732116872682,0.00011714,94732.0,94727.0,0.052722]
[1732116872980,0.00011714,94732.0,94722.0,0.17251611]
[1732116873370,0.00011714,94732.0,94722.0,0.11979111]
[1732116873573,0.00011714,94732.0,94727.0,0.052722]
[1732116873772,0.00011714,94732.0,94722.0,0.07479111]
[1732116873773,0.00011714,94732.0,94728.0,0.052721]
[1732116873969,0.00011714,94732.0,94730.0,0.05272]
[1732116874271,0.00011714,94732.0,94731.0,0.11979111]
[1732116874471,0.00832286,94741.0,94740.0,0.052715]
[1732116874777,0.052701,94765.0,94748.0,0.052711]
[1732116874972,0.052701,94765.0,94749.0,0.11979111]
[1732116875174,0.052701,94765.0,94736.0,0.3608]
[1732116875175,0.17249911,94753.0,94736.0,0.3608]
[1732116875482,0.052707,94755.0,94744.0,0.00150395]
[1732116875870,0.052708,94754.0,94744.0,0.00150395]
[1732116876266,0.3608,94748.0,94744.0,0.00150395]
[1732116876465,0.3608,94748.0,94746.0,0.00150395]
[1732116876878,0.052711,94747.0,94746.0,0.00150395]
[1732116877376,0.413511,94747.0,94746.0,0.00150395]
[1732116878178,0.3608,94747.0,94746.0,0.00150395]
[1732116878975,0.413511,94747.0,94746.0,0.0427175]
[1732116879883,0.3608,94747.0,94746.0,0.0427175]
[1732116880381,0.08202318,94761.0,94746.0,0.0427175]
[1732116880382,0.0407,94761.0,94746.0,0.0427175]
[1732116880681,0.3608,94768.0,94750.0,0.11979111]
[1732116880984,0.3608,94768.0,94753.0,0.052708]
[1732116880985,0.3608,94761.0,94753.0,0.052708]
[1732116881178,0.3608,94761.0,94750.0,0.11979111]
[1732116881379,0.3608,94761.0,94754.0,0.052707]
[1732116881578,0.3608,94761.0,94755.0,0.00150395]
[1732116881781,0.3608,94773.0,94755.0,0.00150395]
[1732116881979,0.3608,94773.0,94764.0,0.052701]
[1732116882185,0.3608,94773.0,94765.0,0.11979111]
[1732116882486,0.3608,94773.0,94769.0,0.00150395]
[1732116883275,0.1179,94793.0,94769.0,0.00150395]
[1732116883478,0.0376,94793.0,94769.0,0.00150395]
[1732116883779,0.3608,94785.0,94781.0,0.00150395]
[1732116884677,0.3608,94785.0,94783.0,0.00150395]
[1732116885778,0.3608,94785.0,94784.0,0.00150395]
[1732116886589,0.3608,94785.0,94784.0,0.05419495]
[1732116886775,0.052683,94798.0,94784.0,0.00150395]
[1732116886983,0.04168069,94799.0,94786.0,0.052689]
[1732116887282,0.3608,94797.0,94789.0,0.052688]
[1732116887484,0.01474092,94796.0,94785.0,0.05269]
[1732116887690,0.3608,94788.0,94777.0,0.00124]
[1732116887886,0.3608,94778.0,94771.0,0.04243952]
[1732116888077,0.3608,94784.0,94770.0,0.3608]
[1732116888273,0.052694,94778.0,94770.0,0.3608]
[1732116888478,0.3608,94776.0,94762.0,0.3608]
[1732116888680,0.052698,94771.0,94755.0,0.10933899]
[1732116888887,0.052698,94771.0,94755.0,0.14260919]
[1732116889085,0.3608,94776.0,94761.0,0.052703]
[1732116889391,0.3608,94776.0,94762.0,0.11979111]
[1732116889590,0.3608,94776.0,94766.0,0.052701]
[1732116889779,0.052696,94775.0,94762.0,0.11979111]
[1732116890287,0.3608,94765.0,94762.0,0.11979111]
[1732116890790,0.052696,94774.0,94762.0,0.11979111]
[1732116890981,0.3608,94765.0,94762.0,0.11979111]
[1732116891788,0.052698,94772.0,94762.0,0.11979111]
[1732116892282,0.3608,94776.0,94762.0,0.11979111]
[1732116892491,0.3608,94776.0,94770.0,0.11979111]
[1732116892695,0.3608,94776.0,94771.0,0.0376]
[1732116893081,0.3608,94787.0,94771.0,0.0376]
[1732116893082,0.05269,94785.0,94771.0,0.0376]
[1732116893288,0.052691,94784.0,94771.0,0.0376]
[1732116893589,0.052696,94774.0,94764.0,0.3608]
[1732116893785,0.052694,94777.0,94765.0,0.0527]
[1732116893985,0.3608,94778.0,94768.0,0.052699]
[1732116894192,0.413494,94778.0,94768.0,0.11979111]
[1732116894585,0.3608,94778.0,94768.0,0.11979111]
[1732116894892,0.3608,94778.0,94775.0,0.11979111]
[1732116896092,0.3608,94787.0,94775.0,0.11979111]
[1732116896392,0.3608,94787.0,94765.0,0.0791]
[1732116896393,0.3608,94787.0,94782.0,0.11979111]
[1732116896693,0.413489,94787.0,94775.0,0.11979111]
[1732116896888,0.3608,94779.0,94765.0,0.07218136]
[1732116897195,0.01457674,94778.0,94769.0,0.052698]
[1732116897387,0.01457674,94778.0,94765.0,0.15367247]
[1732116897388,0.01457674,94777.0,94765.0,0.15367247]
[1732116897587,0.01457674,94776.0,94765.0,0.15367247]
[1732116897794,0.052697,94773.0,94765.0,0.15367247]
[1732116897989,0.3608,94779.0,94765.0,0.15367247]
[1732116897990,0.052694,94778.0,94765.0,0.15367247]
[1732116898185,0.3608,94779.0,94765.0,0.15367247]
[1732116898897,0.0527,94766.0,94765.0,0.03388136]
[1732116899085,0.052702,94763.0,94759.0,0.21848]
[1732116899395,0.052702,94764.0,94759.0,0.25192643]
[1732116899583,0.052702,94763.0,94759.0,0.25192643]
[1732116899784,0.3608,94770.0,94759.0,0.03344643]
[1732116899988,0.3608,94770.0,94750.0,0.0210726]
[1732116900189,0.3608,94757.0,94749.0,0.11979111]
[1732116900386,0.3608,94757.0,94742.0,0.14086371]
[1732116900592,0.3608,94757.0,94742.0,0.11979111]
[1732116901282,0.3608,94757.0,94739.0,0.39407784]
[1732116901283,0.052715,94740.0,94739.0,0.03327784]
[1732116901487,0.052718,94735.0,94734.0,0.11987164]
[1732116901699,0.3608,94740.0,94734.0,0.1535797]
[1732116901905,0.052717,94736.0,94734.0,0.1535797]
[1732116902098,0.00844,94739.0,94734.0,0.1535797]
[1732116903586,0.00844,94739.0,94734.0,0.03370806]
[1732116903587,9.728e-05,94738.0,94734.0,0.03370806]
[1732116903791,9.728e-05,94738.0,94737.0,0.17250711]
[1732116904902,0.36238382,94776.0,94761.0,0.052703]
[1732116905095,0.00158382,94776.0,94769.0,0.11979111]
[1732116906295,0.00158382,94776.0,94773.0,0.052696]
[1732116906492,0.00158382,94776.0,94774.0,0.052696]
[1732116906699,0.3608,94782.0,94769.0,0.11979111]
[1732116907003,0.3608,94788.0,94776.0,0.11918883]
[1732116907204,0.052685,94793.0,94781.0,0.052692]
[1732116907409,0.01363549,94792.0,94784.0,0.11979111]
[1732116907593,0.01363549,94791.0,94784.0,0.11979111]
[1732116907898,0.3608,94794.0,94784.0,0.11979111]
[1732116908105,0.0136714,94793.0,94784.0,0.17248111]
[1732116908291,0.0136714,94792.0,94784.0,0.11979111]
[1732116908488,0.0136714,94791.0,94784.0,0.11979111]
[1732116908695,0.0663584,94790.0,94777.0,0.11979111]
[1732116909003,0.0663594,94789.0,94777.0,0.11979111]
[1732116909203,0.0136714,94788.0,94777.0,0.11979111]
[1732116909394,0.3608,94794.0,94779.0,0.052693]
[1732116909595,0.01354859,94787.0,94774.0,0.0406]
[1732116909790,0.11979111,94795.0,94762.0,0.69771111]
[1732116909791,0.37434859,94786.0,94762.0,0.69771111]
[1732116910096,0.01354859,94785.0,94769.0,0.11979111]
[1732116910297,0.052693,94780.0,94769.0,0.11979111]
[1732116910900,0.01351558,94779.0,94769.0,0.11979111]
[1732116911102,0.052693,94780.0,94769.0,0.11979111]
[1732116911300,0.3608,94786.0,94762.0,0.73188314]
[1732116911505,0.01348441,94785.0,94762.0,0.73100314]
[1732116911693,0.052696,94775.0,94762.0,0.51388314]
[1732116912096,0.0401,94785.0,94762.0,0.51388314]
[1732116912301,0.0527,94768.0,94762.0,0.51388314]
[1732116912505,0.052697,94773.0,94762.0,0.51388314]
[1732116912806,0.44695737,94786.0,94770.0,0.11979111]
[1732116912807,0.39426737,94786.0,94770.0,0.11979111]
[1732116912997,0.01362437,94785.0,94770.0,0.3608]
[1732116913196,0.052694,94779.0,94770.0,0.3608]
[1732116913499,0.052695,94775.0,94770.0,0.3608]
[1732116913695,0.3608,94776.0,94762.0,0.39409203]
[1732116913900,0.052702,94763.0,94762.0,0.39409203]
[1732116914095,0.052702,94763.0,94762.0,0.3608]
[1732116914498,0.052703,94762.0,94760.0,0.03429819]
[1732116914693,0.052703,94762.0,94753.0,0.11979111]
[1732116914694,0.3608,94763.0,94755.0,0.3608]
[1732116915005,0.3608,94776.0,94761.0,0.11979111]
[1732116915207,0.3608,94776.0,94769.0,0.11979111]
[1732116915406,0.3608,94787.0,94770.0,0.0371]
[1732116915702,0.01366185,94786.0,94776.0,0.17248611]
[1732116915909,0.37446185,94785.0,94776.0,0.17248611]
[1732116916095,0.01366185,94784.0,94776.0,0.11979111]
[1732116916294,0.01377053,94783.0,94776.0,0.11979111]
[1732116916495,0.052689,94786.0,94776.0,0.11979111]
[1732116916815,0.01369547,94785.0,94776.0,0.11979111]
[1732116917111,0.052689,94786.0,94776.0,0.11979111]
[1732116917407,0.01369277,94785.0,94776.0,0.11979111]
[1732116917608,0.06638377,94784.0,94776.0,0.11979111]
[1732116917808,0.052691,94784.0,94776.0,0.15299346]
[1732116918004,0.01373231,94783.0,94776.0,0.15299346]
[1732116918194,0.01373231,94782.0,94776.0,0.15299346]
[1732116918505,0.3608,94791.0,94776.0,0.15299346]
[1732116918701,0.052689,94786.0,94776.0,0.10799346]
[1732116918896,0.01373441,94785.0,94776.0,0.10799346]
[1732116919100,0.01373441,94784.0,94776.0,0.10799346]
[1732116919309,0.03382613,94798.0,94783.0,0.11979111]
[1732116919507,0.10256001,94800.0,94782.0,0.3608]
[1732116919508,0.01383759,94797.0,94792.0,0.11979111]
[1732116919703,0.102,94800.0,94785.0,0.11979111]
[1732116919704,0.01383759,94796.0,94785.0,0.11979111]
[1732116920011,0.01390811,94795.0,94785.0,0.11979111]
[1732116920202,0.01390811,94795.0,94782.0,0.3608]
[1732116920203,0.052688,94789.0,94782.0,0.3608]
[1732116920403,0.3608,94796.0,94782.0,0.3608]
[1732116920600,0.052686,94792.0,94782.0,0.3608]
[1732116920912,0.052687,94791.0,94782.0,0.3608]
[1732116921108,0.3608,94796.0,94782.0,0.3608]
[1732116921306,0.01382562,94795.0,94782.0,0.3608]
[1732116921506,0.052687,94791.0,94782.0,0.3608]
[1732116921709,0.052684,94795.0,94785.0,0.11979111]
[1732116921906,0.01381971,94794.0,94785.0,0.11979111]
[1732116922207,0.01381971,94793.0,94785.0,0.11979111]
[1732116922406,0.052684,94796.0,94785.0,0.11979111]
[1732116922601,0.01386019,94795.0,94785.0,0.11979111]
[1732116922813,0.01386019,94794.0,94785.0,0.11979111]
[1732116923108,0.06654519,94793.0,94785.0,0.11979111]
[1732116923310,0.3608,94797.0,94785.0,0.11979111]
[1732116923311,0.052687,94791.0,94785.0,0.11979111]
[1732116923516,0.06665666,94790.0,94785.0,0.11979111]
[1732116923807,0.01395544,94789.0,94785.0,0.11979111]
[1732116924014,0.01395544,94788.0,94785.0,0.11979111]
[1732116924206,0.052684,94795.0,94785.0,0.11979111]
[1732116924423,0.01396915,94794.0,94785.0,0.11979111]
[1732116924605,0.01396915,94793.0,94785.0,0.11979111]
[1732116924913,0.052685,94794.0,94785.0,0.11979111]
[1732116925116,0.06664093,94793.0,94785.0,0.11979111]
[1732116925416,0.052683,94797.0,94785.0,0.17248111]
[1732116925610,0.052685,94793.0,94785.0,0.11979111]
[1732116925811,0.052685,94793.0,94782.0,0.3608]
[1732116925812,0.102,94800.0,94792.0,0.11979111]
[1732116926005,0.01353405,94799.0,94792.0,0.11979111]
[1732116926205,0.102,94800.0,94792.0,0.11979111]
[1732116926713,0.3608,94796.0,94792.0,0.11979111]
[1732116926916,0.00843,94799.0,94792.0,0.11979111]
[1732116927101,0.3608,94796.0,94792.0,0.11979111]
[1732116927509,0.3608,94796.0,94785.0,0.03435264]
[1732116927713,0.052687,94791.0,94782.0,0.3608]
[1732116927918,0.3608,94796.0,94782.0,0.3608]
[1732116928099,0.052688,94790.0,94782.0,0.3608]
[1732116928301,0.3608,94787.0,94772.0,0.0401]
[1732116928506,0.052696,94773.0,94772.0,0.03417059]
[1732116928702,0.11979111,94780.0,94756.0,0.11979111]
[1732116928905,0.052699,94769.0,94756.0,0.11979111]
[1732116929108,0.413499,94769.0,94750.0,0.0210739]
[1732116929308,0.413499,94769.0,94749.0,0.0386]
[1732116929507,0.052708,94752.0,94751.0,0.0391]
[1732116929707,0.00844,94768.0,94751.0,0.0391]
[1732116929708,0.3608,94756.0,94751.0,0.15889111]
[1732116930421,0.413506,94756.0,94751.0,0.15889111]
[1732116930715,0.00844,94768.0,94753.0,0.3608]
[1732116930915,0.00844,94768.0,94767.0,0.11979111]
[1732116931112,0.36924,94768.0,94753.0,0.11979111]
[1732116931419,0.36924,94768.0,94751.0,0.0391]
[1732116931614,0.052707,94755.0,94751.0,0.0391]
[1732116931916,0.052704,94759.0,94753.0,0.11979111]
[1732116932620,0.3608,94760.0,94753.0,0.11979111]
[1732116932807,0.00844,94768.0,94753.0,0.11979111]
[1732116933011,0.00844,94768.0,94761.0,0.11979111]
[1732116933323,0.00844,94768.0,94762.0,0.3608]
[1732116933517,0.3608,94779.0,94762.0,0.3158]
[1732116933719,0.3608,94779.0,94776.0,0.11979111]
[1732116934020,0.413493,94779.0,94768.0,0.11979111]
[1732116934322,0.052693,94779.0,94768.0,0.11979111]
[1732116934525,0.39439893,94790.0,94768.0,0.11979111]
[1732116934912,0.3608,94774.0,94761.0,0.052703]
[1732116935108,0.3608,94774.0,94762.0,0.052702]
[1732116935314,0.3608,94774.0,94765.0,0.0527]
[1732116935515,0.3608,94774.0,94768.0,0.11979111]
[1732116935714,0.3608,94774.0,94768.0,0.17249011]
[1732116936118,0.12822111,94799.0,94768.0,0.17249011]
[1732116936119,0.00843,94799.0,94798.0,0.052683]
[1732116936322,0.04220766,94799.0,94795.0,0.11979111]
[1732116936623,0.00843,94799.0,94780.0,0.11979111]
[1732116936925,0.052683,94797.0,94781.0,0.052692]
[1732116937123,0.3608,94787.0,94780.0,0.11979111]
[1732116937322,0.3608,94787.0,94773.0,0.14086843]
[1732116937517,0.413484,94795.0,94780.0,0.11979111]
[1732116937718,0.052685,94793.0,94780.0,0.11979111]
[1732116938015,0.052686,94792.0,94780.0,0.17248411]
[1732116938216,0.3608,94785.0,94769.0,0.39450934]
[1732116938618,0.3608,94777.0,94769.0,0.03370934]
[1732116938920,0.052698,94770.0,94769.0,8.681e-05]
[1732116939916,0.3608,94773.0,94769.0,8.681e-05]
[1732116940119,0.00060001,94781.0,94772.0,0.11979111]
[1732116940325,0.3608,94789.0,94783.0,0.052691]
[1732116940527,0.3608,94789.0,94780.0,0.11979111]
[1732116940528,0.0397,94798.0,94780.0,0.11979111]
[1732116940723,0.07295309,94798.0,94781.0,0.052692]
[1732116940916,0.3608,94787.0,94780.0,0.11979111]
[1732116941315,0.3608,94787.0,94785.0,0.05269]
[1732116941524,0.3608,94787.0,94783.0,0.052691]
[1732116941729,0.407189,94787.0,94780.0,0.11979111]
[1732116942032,0.3545,94787.0,94780.0,0.11979111]
[1732116942333,0.052692,94781.0,94780.0,0.1536748]
[1732116942629,0.052692,94781.0,94780.0,0.03388369]
[1732116942813,0.052695,94775.0,94769.0,8.681e-05]
[1732116943018,0.052696,94773.0,94769.0,0.03304652]
[1732116943325,0.3608,94781.0,94769.0,8.681e-05]
[1732116943532,0.052698,94770.0,94769.0,8.681e-05]
[1732116943917,0.413498,94770.0,94769.0,8.681e-05]
[1732116944915,0.052711,94748.0,94746.0,0.11979111]
[1732116945119,0.3608,94762.0,94745.0,0.052712]
[1732116945331,0.01688,94747.0,94746.0,0.11979111]
[1732116946031,0.01688,94747.0,94746.0,0.17250211]
[1732116947730,0.069591,94747.0,94746.0,0.11979111]
[1732116947917,0.01688,94747.0,94746.0,0.11979111]
[1732116948433,0.01688,94747.0,94746.0,0.17250211]
[1732116949026,0.01688,94747.0,94746.0,0.53330211]
[1732116949332,8.614e-05,94769.0,94764.0,0.052701]
[1732116949529,8.614e-05,94769.0,94768.0,0.11979111]